[Event "17th Memorial Lezcano Montalvo 2025"]
[Site "Gran Canaria"]
[Date "2025.04.19"]
[Round "8.38"]
[White "de Leon Navarro, Claudio"]
[Black "Oramas Medina, Miguel"]
[Result "1-0"]
[Annotator "RC"]
[ECO "C50"]
[WhiteElo "1918"]
[BlackElo "1796"]
[PlyCount "137"]
[EventDate "2025.04.13"]
[EventType "swiss"]
[EventCountry "ESP"]
[SourceTitle "playchess.com"]
[Source "ChessBase"]
[SourceQuality "1"]
[TimeControl "5400+30"]

1. e4 {[%emt 0:04:37]} e5 {[%emt 0:00:04]} 2. Nf3 {[%emt 0:00:10]} Nc6 {[%emt 0:00:08]} 3. Bc4 {[%emt 0:00:08]} Bc5 {[%emt 0:00:05]} 4. a4 {[%emt 0:00:52]} Nf6 {[%emt 0:00:39]} 5. d3 {[%emt 0:00:18]} d6 {[%emt 0:00:33]} 6. O-O {[%emt 0:00:14]} O-O {[%emt 0:00:39]} 7. h3 {[%emt 0:00:37]} h6 {[%emt 0:00:37]} 8. Nbd2 {[%emt 0:00:09]} a6 {[%emt 0:03:57]} 9. Re1 {[%emt 0:00:26]} Re8 {[%emt 0:01:17]} 10. Nf1 {[%emt 0:01:24]} Be6 {[%emt 0:01:00]} 11. Bxe6 {[%emt 0:00:32]} fxe6 {[%emt 0:00:06]} 12. Be3 {[%emt 0:00:17]} Bxe3 {[%emt 0:01:52]} 13. Nxe3 {[%emt 0:00:24]} Qd7 {[%emt 0:02:52]} 14. c3 {[%emt 0:01:05]} d5 {[%emt 0:03:00]} 15. Qc2 {[%emt 0:04:11]} Rad8 {[%emt 0:06:07]} 16. Rad1 {[%emt 0:01:27]} Qf7 {[%emt 0:05:03]} 17. b4 {[%emt 0:02:56]} b5 {[%emt 0:01:55]} 18. Ra1 {[%emt 0:05:59]} Ra8 {[%emt 0:06:52]} 19. Nf1 {[%emt 0:06:45]} Nd7 {[%emt 0:08:38]} 20. Qb3 {[%emt 0:06:22]} d4 {[%emt 0:06:21]} 21. axb5 {[%emt 0:06:45]} axb5 {[%emt 0:00:38]} 22. c4 {[%emt 0:00:40]} Rxa1 {[%emt 0:13:44]} 23. Rxa1 {[%emt 0:00:13]} Qe7 {[%emt 0:00:06]} 24. c5 {[%emt 0:02:51]} Qf8 {[%emt 0:05:25]} 25. Ra6 {[%emt 0:04:28]} Ndb8 {[%emt 0:00:39]} 26. Ra8 {[%emt 0:01:41]} Nd7 {[%emt 0:00:36]} 27. Ra6 {[%emt 0:01:40]} Ndb8 {[%emt 0:00:14]} 28. Ra1 {[%emt 0:00:35]} Nd7 {[%emt 0:00:45]} 29. N1h2 {[%emt 0:00:24]} Kf7 {[%emt 0:03:28]} 30. Qa3 {[%emt 0:02:39]} Rb8 {[%emt 0:00:52]} 31. Ng4 {[%emt 0:02:31]} h5 {[%emt 0:01:09]} 32. Ngh2 {[%emt 0:00:34]} Qe7 {[%emt 0:04:17]} 33. h4 {[%emt 0:02:13]} g6 {[%emt 0:03:50]} 34. Qb3 {[%emt 0:00:52]} Rd8 {[%emt 0:02:40]} 35. Ng5+ {[%emt 0:01:29]} Kf6 {[%emt 0:00:09]} 36. Rf1 {[%emt 0:01:43]} Re8 {[%emt 0:06:29]} 37. g4 {[%emt 0:03:20]} Kg7 {[%emt 0:02:14]} 38. gxh5 {[%emt 0:02:54]} gxh5 {[%emt 0:00:07]} 39. Kh1 {[%emt 0:00:24]} Kh6 {[%emt 0:02:39]} 40. Rg1 {[%emt 0:01:04]} Nf8 {[%emt 0:01:20]} 41. Ngf3 {[%emt 0:02:30]} Ng6 {[%emt 0:00:16]} 42. Qb1 {[%emt 0:07:05]} Nf4 {[%emt 0:03:07]} 43. Ng5 {[%emt 0:04:38]} Rg8 {[%emt 0:01:04]} 44. Nhf3 {[%emt 0:00:09]} Qf6 {[%emt 0:00:36]} 45. Qb3 {[%emt 0:02:44]} Nd8 {[%emt 0:00:53]} 46. Qd1 {[%emt 0:02:54]} Nf7 {[%emt 0:00:49]} 47. Rg3 {[%emt 0:00:44]} Nh8 {[%emt 0:01:01]} 48. Qd2 {[%emt 0:01:28]} Nhg6 {[%emt 0:00:34]} 49. Nh3 {[%emt 0:02:32]} Kh7 {[%emt 0:01:01]} 50. Nxf4 {[%emt 0:02:37]} Nxf4 {[%emt 0:00:31]} 51. Rxg8 {[%emt 0:00:30]} Kxg8 {[%emt 0:00:07]} 52. Ng5 {[%emt 0:00:28]} Ng6 {[%emt 0:00:25]} 53. Qa2 {[%emt 0:01:44]} Nxh4 {[%emt 0:01:12]} 54. Qxe6+ {[%emt 0:00:19]} Qxe6 {[%emt 0:00:03]} 55. Nxe6 {[%emt 0:00:04]} c6 {[%emt 0:00:18]} 56. Nd8 {[%emt 0:00:36]} Nf3 {[%emt 0:00:15]} 57. Nxc6 {[%emt 0:00:10]} Kf8 {[%emt 0:00:54]} 58. Na7 {[%emt 0:01:11]} Ke7 {[%emt 0:03:18]} 59. Nxb5 {[%emt 0:00:50]} Ne1 {[%emt 0:00:00]} 60. f4 {[%emt 0:01:24]} Nxd3 {[%emt 0:00:00]} 61. fxe5 {[%emt 0:00:32]} Nf2+ {[%emt 0:00:00]} 62. Kg2 {[%emt 0:00:20]} Nxe4 {[%emt 0:00:00]} 63. Nxd4 {[%emt 0:00:08]} Ng5 {[%emt 0:00:54]} 64. c6 {[%emt 0:00:25]} Kd8 {[%emt 0:01:10]} 65. b5 {[%emt 0:00:17]} Kc7 {[%emt 0:00:46]} 66. Kg3 {[%emt 0:01:34]} Nh7 {[%emt 0:00:33]} 67. Kh4 {[%emt 0:00:30]} Nf8 {[%emt 0:00:28]} 68. Kxh5 {[%emt 0:00:12]} Kb6 {[%emt 0:00:19]} 69. e6 {[%emt 0:01:03]} 1-0

[Event "17th Memorial Lezcano Montalvo 2025"]
[Site "Gran Canaria"]
[Date "2025.04.19"]
[Round "8.39"]
[White "Hernandez Guerra, Luna Yue"]
[Black "Cappelle, Cedric"]
[Result "1-0"]
[Annotator "NA RC"]
[ECO "B13"]
[WhiteElo "1897"]
[BlackElo "1774"]
[PlyCount "87"]
[EventDate "2025.04.13"]
[EventType "swiss"]
[EventCountry "ESP"]
[SourceTitle "playchess.com"]
[Source "ChessBase"]
[SourceQuality "1"]
[TimeControl "5400+30"]

1. e4 {[%emt 0:00:05]} c6 {[%emt 0:00:05]} 2. d4 {[%emt 0:00:04]} d5 {[%emt 0:00:04]} 3. exd5 {[%emt 0:00:06]} cxd5 {[%emt 0:00:06]} 4. Bd3 {[%emt 0:00:06]} Nc6 {[%emt 0:00:05]} 5. c3 {[%emt 0:00:04]} Nf6 {[%emt 0:00:07]} 6. h3 {[%emt 0:00:06]} e5 {[%emt 0:00:06]} 7. dxe5 {[%emt 0:00:50]} Nxe5 {[%emt 0:00:06]} 8. Nf3 {[%emt 0:00:58]} Nxd3+ {[%emt 0:00:07]} 9. Qxd3 {[%emt 0:00:05]} Bd6 {[%emt 0:00:13]} 10. O-O {[%emt 0:00:13]} O-O {[%emt 0:00:14]} 11. Bg5 {[%emt 0:03:17]} h6 {[%emt 0:04:01]} 12. Bh4 {[%emt 0:02:14]} a5 {[%emt 0:01:03]} 13. Nbd2 {[%emt 0:02:14]} a4 {[%emt 0:00:19]} 14. a3 {[%emt 0:03:23]} Ra6 {[%emt 0:09:10]} 15. Rad1 {[%emt 0:06:21]} Re8 {[%emt 0:04:03]} 16. Rfe1 {[%emt 0:07:24]} Rxe1+ {[%emt 0:00:23]} 17. Rxe1 {[%emt 0:00:05]} g5 {[%emt 0:13:42]} 18. Bg3 {[%emt 0:27:44]} Bxg3 {[%emt 0:00:09]} 19. fxg3 {[%emt 0:00:03]} Qb6+ {[%emt 0:00:42]} 20. Kh2 {[%emt 0:00:23]} g4 {[%emt 0:11:09]} 21. Ne5 {[%emt 0:10:30]} gxh3 {[%emt 0:02:37]} 22. Re2 {[%emt 0:04:15]} hxg2 {[%emt 0:05:35]} 23. Kxg2 {[%emt 0:00:45]} Qe6 {[%emt 0:14:43]} 24. Ndf3 {[%emt 0:02:29]} Qh3+ {[%emt 0:04:24]} 25. Kg1 {[%emt 0:00:08]} Qf5 {[%emt 0:07:33]} 26. Nd4 {[%emt 0:05:40]} Qxd3 {[%emt 0:04:16]} 27. Nxd3 {[%emt 0:02:08]} Kf8 {[%emt 0:00:16]} 28. Kg2 {[%emt 0:07:27]} Bd7 {[%emt 0:04:16]} 29. Re5 {[%emt 0:04:47]} Rb6 {[%emt 0:01:22]} 30. Kf1 {[%emt 0:02:51]} Ng4 {[%emt 0:01:11]} 31. Re2 {[%emt 0:01:10]} Rf6+ {[%emt 0:02:18]} 32. Ke1 {[%emt 0:00:07]} b6 {[%emt 0:02:10]} 33. Kd2 {[%emt 0:01:12]} Be6 {[%emt 0:00:53]} 34. Nf4 {[%emt 0:01:04]} Bd7 {[%emt 0:04:10]} 35. Nxd5 {[%emt 0:03:22]} Rd6 {[%emt 0:00:06]} 36. Nf4 {[%emt 0:01:03]} Kg7 {[%emt 0:00:53]} 37. Kc2 {[%emt 0:01:30]} Kf6 {[%emt 0:00:15]} 38. Re1 {[%emt 0:01:33]} Bf5+ {[%emt 0:01:20]} 39. Kc1 {[%emt 0:00:47]} Nf2 {[%emt 0:01:10]} 40. Rf1 {[%emt 0:00:35]} Ne4 {[%emt 0:01:19]} 41. Nh5+ {[%emt 0:00:18]} Kg6 {[%emt 0:00:56]} 42. Nxf5 {[%emt 0:00:05]} Rd2 {[%emt 0:00:58]} 43. g4 {[%emt 0:00:35]} Rg2 {[%emt 0:00:07]} 44. Nf4+ {[%emt 0:02:24]} 1-0

[Event "17th Memorial Lezcano Montalvo 2025"]
[Site "Gran Canaria"]
[Date "2025.04.19"]
[Round "8.39"]
[White "Julien Casteleiro, Ariel"]
[Black "Cruz Ramirez, Nauzet"]
[Result "*"]
[Annotator "NA"]
[ECO "B13"]
[WhiteElo "1761"]
[BlackElo "2076"]
[PlyCount "30"]
[EventDate "2025.04.13"]
[EventType "swiss"]
[EventCountry "ESP"]
[SourceTitle "playchess.com"]
[Source "ChessBase"]
[SourceQuality "1"]
[TimeControl "5400+30"]

1. e4 {[%emt 0:00:05]} c6 {[%emt 0:00:05]} 2. d4 {[%emt 0:00:04]} d5 {[%emt 0:00:04]} 3. exd5 {[%emt 0:00:06]} cxd5 {[%emt 0:00:06]} 4. Bd3 {[%emt 0:00:06]} Nc6 {[%emt 0:00:05]} 5. c3 {[%emt 0:00:04]} Nf6 {[%emt 0:00:07]} 6. h3 {[%emt 0:00:06]} e5 {[%emt 0:00:06]} 7. dxe5 {[%emt 0:00:50]} Nxe5 {[%emt 0:00:06]} 8. Nf3 {[%emt 0:00:58]} Nxd3+ {[%emt 0:00:07]} 9. Qxd3 {[%emt 0:00:05]} Bd6 {[%emt 0:00:13]} 10. O-O {[%emt 0:00:13]} O-O {[%emt 0:00:14]} 11. Bg5 {[%emt 0:03:17]} h6 {[%emt 0:04:01]} 12. Bh4 {[%emt 0:02:14]} a5 {[%emt 0:01:03]} 13. Nbd2 {[%emt 0:02:14]} a4 {[%emt 0:00:19]} 14. a3 {[%emt 0:03:23]} Ra6 {[%emt 0:09:10]} 15. Rad1 {[%emt 0:06:21]} Re8 {[%emt 0:04:03]} *

[Event "17th Memorial Lezcano Montalvo 2025"]
[Site "Gran Canaria"]
[Date "2025.04.19"]
[Round "8.40"]
[White "Lascar, Radoslawa"]
[Black "Creo Abeijon, Diego"]
[Result "1-0"]
[Annotator "NA RC"]
[ECO "B01"]
[WhiteElo "1897"]
[BlackElo "1729"]
[PlyCount "47"]
[EventDate "2025.04.13"]
[EventType "swiss"]
[EventCountry "ESP"]
[SourceTitle "playchess.com"]
[Source "ChessBase"]
[SourceQuality "1"]
[TimeControl "5400+30"]

1. e4 {[%emt 0:01:40]} d5 {[%emt 0:00:06]} 2. exd5 {[%emt 0:00:19]} Nf6 {[%emt 0:00:09]} 3. Nf3 {[%emt 0:00:21]} Bg4 {[%emt 0:01:55]} 4. d4 {[%emt 0:02:25]} Qxd5 {[%emt 0:01:36]} 5. Be2 {[%emt 0:00:27]} Nc6 {[%emt 0:00:58]} 6. O-O {[%emt 0:03:40]} O-O-O {[%emt 0:00:34]} 7. c4 {[%emt 0:04:35]} Qf5 {[%emt 0:03:31]} 8. Be3 {[%emt 0:02:23]} e5 {[%emt 0:05:37]} 9. d5 {[%emt 0:08:48]} Bxf3 {[%emt 0:40:44]} 10. Bxf3 {[%emt 0:01:25]} e4 {[%emt 0:01:27]} 11. Be2 {[%emt 0:01:00]} Bd6 {[%emt 0:05:43]} 12. dxc6 {[%emt 0:24:54]} Bxh2+ {[%emt 0:00:33]} 13. Kxh2 {[%emt 0:00:10]} Rxd1 {[%emt 0:00:27]} 14. cxb7+ {[%emt 0:00:17]} Kb8 {[%emt 0:06:52]} 15. Rxd1 {[%emt 0:00:53]} h5 {[%emt 0:05:42]} 16. Kg1 {[%emt 0:14:36]} g5 {[%emt 0:04:55]} 17. Nc3 {[%emt 0:04:56]} h4 {[%emt 0:11:07]} 18. Nd5 {[%emt 0:12:13]} h3 {[%emt 0:03:54]} 19. Nxf6 {[%emt 0:00:33]} Qxf6 {[%emt 0:01:45]} 20. Bd4 {[%emt 0:04:07]} h2+ {[%emt 0:01:54]} 21. Kh1 {[%emt 0:00:04]} Qf4 {[%emt 0:00:54]} 22. Bxh8 {[%emt 0:00:50]} Qxf2 {[%emt 0:00:24]} 23. c5 {[%emt 0:01:55]} Qxe2 {[%emt 0:00:25]} 24. c6 {[%emt 0:00:12]} 1-0

[Event "17th Memorial Lezcano Montalvo 2025"]
[Site "Gran Canaria"]
[Date "2025.04.19"]
[Round "8.40"]
[White "Cappelle, Cedric"]
[Black "Schmitz, Andreas Arnold"]
[Result "*"]
[Annotator "NA"]
[ECO "B01"]
[WhiteElo "1774"]
[BlackElo "1967"]
[PlyCount "20"]
[EventDate "2025.04.13"]
[EventType "swiss"]
[EventCountry "ESP"]
[SourceTitle "playchess.com"]
[Source "ChessBase"]
[SourceQuality "1"]
[TimeControl "5400+30"]

1. e4 {[%emt 0:01:40]} d5 {[%emt 0:00:06]} 2. exd5 {[%emt 0:00:19]} Nf6 {[%emt 0:00:09]} 3. Nf3 {[%emt 0:00:21]} Bg4 {[%emt 0:01:55]} 4. d4 {[%emt 0:02:25]} Qd7 {[%emt 1:30:20]} 5. d6 Qxd6 {[%emt 0:00:00]} 6. Be2 {[%emt 0:00:57]} Qd5 {[%emt 0:00:00]} 7. O-O {[%emt 0:03:40]} Nc6 {[%emt 0:00:00]} 8. c4 {[%emt 0:04:35]} O-O-O {[%emt 0:00:00]} 9. Be3 {[%emt 0:02:23]} Qf5 {[%emt 0:00:00]} 10. d5 {[%emt 0:08:48]} e5 *

[Event "17th Memorial Lezcano Montalvo 2025"]
[Site "Gran Canaria"]
[Date "2025.04.19"]
[Round "8.41"]
[White "Matos Espino, Carlos Silverio"]
[Black "Rivero Tacoronte, Gabriel"]
[Result "*"]
[Annotator "NA"]
[ECO "D36"]
[WhiteElo "1731"]
[BlackElo "1963"]
[PlyCount "37"]
[EventDate "2025.04.13"]
[EventType "swiss"]
[EventCountry "ESP"]
[SourceTitle "playchess.com"]
[Source "ChessBase"]
[SourceQuality "1"]
[TimeControl "5400+30"]

1. d4 {[%emt 0:00:30]} Nf6 {[%emt 0:05:52]} 2. c4 {[%emt 0:00:06]} e6 {[%emt 0:00:00]} 3. Nc3 {[%emt 0:00:07]} d5 {[%emt 0:00:41]} 4. cxd5 {[%emt 0:00:12]} exd5 {[%emt 0:00:00]} 5. Bg5 {[%emt 0:00:10]} c6 {[%emt 0:00:00]} 6. Qc2 {[%emt 0:00:13]} g6 {[%emt 0:00:01]} 7. e3 {[%emt 0:00:42]} Bf5 {[%emt 0:00:09]} 8. Bd3 {[%emt 0:00:59]} Bxd3 {[%emt 0:00:07]} 9. Qxd3 {[%emt 0:00:02]} Nbd7 {[%emt 0:00:43]} 10. Nf3 {[%emt 0:01:20]} Be7 {[%emt 0:00:44]} 11. h3 {[%emt 0:03:03]} O-O {[%emt 0:01:45]} 12. O-O {[%emt 0:01:47]} Kg7 {[%emt 0:00:55]} 13. Bf4 {[%emt 0:01:11]} Re8 {[%emt 0:01:36]} 14. Rab1 {[%emt 0:02:12]} a5 {[%emt 0:00:21]} 15. b3 {[%emt 0:00:20]} h6 {[%emt 0:06:43]} 16. Ne5 {[%emt 0:03:41]} Nxe5 {[%emt 0:02:27]} 17. Bxe5 {[%emt 0:00:11]} Bd6 {[%emt 0:00:44]} 18. Bxd6 {[%emt 0:01:47]} Qxd6 {[%emt 0:00:02]} 19. Rfc1 {[%emt 0:01:44]} *

[Event "17th Memorial Lezcano Montalvo 2025"]
[Site "Gran Canaria"]
[Date "2025.04.19"]
[Round "8.41"]
[White "Macias Reyes, Jose Luis"]
[Black "Posso Cangrejo, Sergio David"]
[Result "0-1"]
[Annotator "NA RC"]
[ECO "D36"]
[WhiteElo "1674"]
[BlackElo "1878"]
[PlyCount "56"]
[EventDate "2025.04.13"]
[EventType "swiss"]
[EventCountry "ESP"]
[SourceTitle "playchess.com"]
[Source "ChessBase"]
[SourceQuality "1"]
[TimeControl "5400+30"]

1. d4 {[%emt 0:00:30]} Nf6 {[%emt 0:05:52]} 2. c4 {[%emt 0:00:06]} e6 {[%emt 0:00:00]} 3. Nc3 {[%emt 0:00:07]} d5 {[%emt 0:00:41]} 4. cxd5 {[%emt 0:00:12]} exd5 {[%emt 0:00:00]} 5. Bg5 {[%emt 0:00:10]} c6 {[%emt 0:00:00]} 6. Qc2 {[%emt 0:00:13]} g6 {[%emt 0:00:01]} 7. e3 {[%emt 0:00:42]} Bf5 {[%emt 0:00:09]} 8. Bd3 {[%emt 0:00:59]} Bxd3 {[%emt 0:00:07]} 9. Qxd3 {[%emt 0:00:02]} Nbd7 {[%emt 0:00:43]} 10. Nf3 {[%emt 0:01:20]} Be7 {[%emt 0:00:44]} 11. h3 {[%emt 0:03:03]} O-O {[%emt 0:01:45]} 12. O-O {[%emt 0:01:47]} Kg7 {[%emt 0:00:55]} 13. Bf4 {[%emt 0:01:11]} Re8 {[%emt 0:01:36]} 14. Rab1 {[%emt 0:02:12]} a5 {[%emt 0:00:21]} 15. b3 {[%emt 0:00:20]} h6 {[%emt 0:06:43]} 16. Ne5 {[%emt 0:03:41]} Nxe5 {[%emt 0:02:27]} 17. Bxe5 {[%emt 0:00:11]} Bd6 {[%emt 0:00:44]} 18. Bxd6 {[%emt 0:01:47]} Qxd6 {[%emt 0:00:02]} 19. Rfc1 {[%emt 0:01:44]} Re7 {[%emt 0:02:10]} 20. Na4 {[%emt 0:01:26]} Ne4 {[%emt 0:01:19]} 21. Nc5 {[%emt 0:04:23]} Rae8 {[%emt 0:00:00]} 22. Nxe4 {[%emt 1:15:24]} Rxe4 {[%emt 1:15:11]} 23. Rc5 {[%emt 0:00:00]} f5 {[%emt 0:00:00]} 24. Re1 {[%emt 0:00:00]} f4 {[%emt 0:00:00]} 25. Rc2 {[%emt 0:00:00]} Qf6 {[%emt 0:00:00]} 26. Qc3 {[%emt 0:00:00]} Qf5 {[%emt 0:00:00]} 27. Qxa5 {[%emt 0:00:00]} f3 {[%emt 0:00:00]} 28. Qc7+ {[%emt 0:00:00]} R4e7 {[%emt 0:00:00]} 0-1

[Event "17th Memorial Lezcano Montalvo 2025"]
[Site "Gran Canaria"]
[Date "2025.04.19"]
[Round "8.42"]
[White "Creo Abeijon, Diego"]
[Black "de Leon Navarro, Claudio"]
[Result "*"]
[Annotator "NA"]
[ECO "E12"]
[WhiteElo "1729"]
[BlackElo "1918"]
[PlyCount "24"]
[EventDate "2025.04.13"]
[EventType "swiss"]
[EventCountry "ESP"]
[SourceTitle "playchess.com"]
[Source "ChessBase"]
[SourceQuality "1"]
[TimeControl "5400+30"]

1. d4 {[%emt 0:00:30]} Nf6 {[%emt 0:04:39]} 2. c4 {[%emt 0:00:00]} e6 {[%emt 0:00:05]} 3. Nc3 {[%emt 0:01:15]} Bb4 {[%emt 0:00:04]} 4. Nf3 {[%emt 1:30:45]} b6 {[%emt 0:00:47]} 5. Bg5 {[%emt 0:00:29]} h6 {[%emt 0:00:18]} 6. Bxf6 {[%emt 0:00:19]} Qxf6 {[%emt 0:00:15]} 7. e3 {[%emt 0:00:20]} Bb7 {[%emt 0:00:15]} 8. Bd3 {[%emt 0:05:12]} c5 {[%emt 0:07:18]} 9. O-O {[%emt 0:01:06]} Bxc3 {[%emt 1:21:19]} 10. bxc3 {[%emt 0:00:04]} Nc6 {[%emt 0:01:20]} 11. Re1 {[%emt 1:25:46]} d6 {[%emt 0:02:44]} 12. Bc2 {[%emt 0:05:14]} O-O {[%emt 1:16:46]} *

[Event "17th Memorial Lezcano Montalvo 2025"]
[Site "Gran Canaria"]
[Date "2025.04.19"]
[Round "8.43"]
[White "Bangiev, Katharina"]
[Black "Arlet, Benjamin Andres"]
[Result "0-1"]
[Annotator "NA RC"]
[ECO "B45"]
[WhiteElo "1848"]
[BlackElo "1721"]
[PlyCount "78"]
[EventDate "2025.04.13"]
[EventType "swiss"]
[EventCountry "ESP"]
[SourceTitle "playchess.com"]
[Source "ChessBase"]
[SourceQuality "1"]
[TimeControl "5400+30"]

1. e4 {[%emt 0:00:03]} c5 {[%emt 0:07:16]} 2. Nf3 {[%emt 0:00:10]} Nc6 {[%emt 0:00:04]} 3. d4 {[%emt 0:00:09]} cxd4 {[%emt 0:00:03]} 4. Nxd4 {[%emt 0:00:07]} Nf6 {[%emt 0:00:03]} 5. Nc3 {[%emt 0:00:20]} e6 {[%emt 0:00:04]} 6. g3 {[%emt 0:06:17]} Bb4 {[%emt 0:00:31]} 7. Bg2 {[%emt 0:01:42]} d5 {[%emt 0:01:11]} 8. O-O {[%emt 0:11:52]} Bxc3 {[%emt 0:02:41]} 9. bxc3 {[%emt 0:00:09]} Nxe4 {[%emt 0:00:16]} 10. Nxc6 {[%emt 0:04:30]} bxc6 {[%emt 0:00:42]} 11. Bxe4 {[%emt 0:00:24]} dxe4 {[%emt 0:00:04]} 12. Qg4 {[%emt 0:00:52]} O-O {[%emt 0:00:53]} 13. Qxe4 {[%emt 0:03:14]} Qd5 {[%emt 0:00:07]} 14. Qd3 {[%emt 0:01:07]} a5 {[%emt 0:01:05]} 15. c4 {[%emt 0:03:12]} Qh5 {[%emt 0:21:17]} 16. Ba3 {[%emt 0:13:10]} c5 {[%emt 0:05:30]} 17. Rab1 {[%emt 0:14:41]} Ba6 {[%emt 0:01:06]} 18. Rfd1 {[%emt 0:01:53]} h6 {[%emt 0:03:55]} 19. Rb6 {[%emt 0:04:19]} Bxc4 {[%emt 0:02:46]} 20. Qd2 {[%emt 0:03:45]} Bd5 {[%emt 0:01:09]} 21. Qd3 {[%emt 0:09:28]} c4 {[%emt 0:01:10]} 22. Qf1 {[%emt 0:00:46]} Rfd8 {[%emt 0:00:27]} 23. f4 {[%emt 0:04:10]} Qf5 {[%emt 0:02:44]} 24. Qe2 {[%emt 0:02:12]} c3 {[%emt 0:06:32]} 25. Rb5 {[%emt 0:02:34]} Qh3 {[%emt 0:03:10]} 26. Rc5 {[%emt 0:02:01]} Rac8 {[%emt 0:15:47]} 27. Rxa5 {[%emt 0:02:24]} Bc4 {[%emt 0:00:44]} 28. Qh5 {[%emt 0:06:43]} Qxh5 {[%emt 0:01:30]} 29. Rxd8+ {[%emt 0:00:02]} Rxd8 {[%emt 0:00:01]} 30. Rxh5 {[%emt 0:00:02]} f5 {[%emt 0:03:23]} 31. Bb4 {[%emt 0:01:58]} Be2 {[%emt 0:03:14]} 32. Rh4 {[%emt 0:00:19]} Rc8 {[%emt 0:00:06]} 33. Rh3 {[%emt 0:01:34]} Bg4 {[%emt 0:00:12]} 34. Rh4 {[%emt 0:00:20]} Bd1 {[%emt 0:00:04]} 35. Kf2 {[%emt 0:00:48]} Bxc2 {[%emt 0:00:25]} 36. Ke2 {[%emt 0:00:31]} Be4 {[%emt 0:00:14]} 37. Kd1 {[%emt 0:00:23]} Rd8+ {[%emt 0:00:51]} 38. Kc1 {[%emt 0:00:15]} c2 {[%emt 0:00:05]} 39. Bd2 {[%emt 0:00:58]} Rb8 {[%emt 0:00:06]} 0-1

[Event "17th Memorial Lezcano Montalvo 2025"]
[Site "Gran Canaria"]
[Date "2025.04.19"]
[Round "8.43"]
[White "Arlet, Benjamin Andres"]
[Black "Lascar, Radoslawa"]
[Result "*"]
[Annotator "NA"]
[ECO "B45"]
[WhiteElo "1721"]
[BlackElo "1897"]
[PlyCount "26"]
[EventDate "2025.04.13"]
[EventType "swiss"]
[EventCountry "ESP"]
[SourceTitle "playchess.com"]
[Source "ChessBase"]
[SourceQuality "1"]
[TimeControl "5400+30"]

1. e4 {[%emt 0:00:03]} c5 {[%emt 0:07:16]} 2. Nf3 {[%emt 0:00:10]} Nc6 {[%emt 0:00:04]} 3. d4 {[%emt 0:00:09]} cxd4 {[%emt 0:00:03]} 4. Nxd4 {[%emt 0:00:07]} Nf6 {[%emt 0:00:03]} 5. Nc3 {[%emt 0:00:20]} e6 {[%emt 0:00:04]} 6. g3 {[%emt 0:06:17]} Bb4 {[%emt 0:00:31]} 7. Bg2 {[%emt 0:01:42]} d5 {[%emt 0:01:11]} 8. O-O {[%emt 0:11:52]} Bxc3 {[%emt 1:25:18]} 9. bxc3 {[%emt 0:00:09]} Nxe4 {[%emt 0:00:16]} 10. Nxc6 {[%emt 0:04:30]} bxc6 {[%emt 0:00:42]} 11. Bxe4 {[%emt 0:00:24]} dxe4 {[%emt 0:00:04]} 12. Qg4 {[%emt 0:00:52]} O-O {[%emt 0:00:53]} 13. Qxe4 {[%emt 0:03:14]} Qd5 {[%emt 0:00:07]} *

[Event "17th Memorial Lezcano Montalvo 2025"]
[Site "Gran Canaria"]
[Date "2025.04.19"]
[Round "8.44"]
[White "Garcia Rodriguez, Adriana"]
[Black "Garcia Almeida, Valeria"]
[Result "*"]
[Annotator "NA"]
[ECO "E01"]
[WhiteElo "1893"]
[BlackElo "1582"]
[PlyCount "25"]
[EventDate "2025.04.13"]
[EventType "swiss"]
[EventCountry "ESP"]
[SourceTitle "playchess.com"]
[Source "ChessBase"]
[SourceQuality "1"]
[TimeControl "5400+30"]

1. c4 {[%emt 0:00:07]} e6 {[%emt 0:00:07]} 2. Nc3 {[%emt 0:00:39]} d5 {[%emt 0:00:35]} 3. d4 {[%emt 0:03:35]} Nf6 {[%emt 0:00:34]} 4. g3 {[%emt 0:00:59]} Be7 {[%emt 0:02:46]} 5. Bg2 {[%emt 0:00:58]} O-O {[%emt 0:00:44]} 6. c5 {[%emt 0:00:47]} c6 {[%emt 1:28:44]} 7. Nf3 {[%emt 0:00:25]} Nbd7 {[%emt 0:00:00]} 8. O-O {[%emt 0:00:43]} e5 {[%emt 0:00:00]} 9. Nxe5 {[%emt 0:01:45]} Nxe5 {[%emt 0:00:00]} 10. dxe5 {[%emt 0:00:04]} Ng4 {[%emt 0:00:00]} 11. b4 {[%emt 0:04:39]} Nxe5 {[%emt 0:00:00]} 12. Bb2 {[%emt 0:00:13]} Nc4 {[%emt 0:00:00]} 13. Rb1 {[%emt 0:00:47]} *